bitfinex-derivatives/quotes_ETHF0:USTF0_20260310
["timestamp","ask_amount","ask_price","bid_price","bid_amount"]
[1773174420942,2.27875541,2043.2,2042.6,2.3065332]
[1773174421238,4.56383332,2043.1,2042.7,2.3065332]
[1773174421443,2.27875541,2043.2,2042.7,2.3065332]
[1773174421848,2.27875541,2043.2,2042.7,2.31280715]
[1773174426751,2.27875541,2043.0,2042.7,0.00627395]
[1773174427450,4.56383332,2043.1,2042.7,2.31280715]
[1773174428349,2.27875541,2043.0,2042.7,0.00627395]
[1773174428545,2.27875541,2043.0,2042.7,2.31280715]
[1773174431451,2.28507791,2043.2,2042.7,2.31280715]
[1773174431658,2.28507791,2043.1,2042.7,2.31280715]
[1773174431957,4.56383332,2043.1,2042.7,2.31280715]
[1773174432557,4.56383332,2043.1,2042.8,8.7185332]
[1773174433656,2.28507791,2043.1,2042.8,8.7185332]
[1773174434554,2.28507791,2043.1,2042.9,2.3065332]
[1773174435058,4.56383332,2043.1,2042.8,8.7185332]
[1773174435459,4.56383332,2043.1,2042.8,6.412]
[1773174435660,4.56383332,2043.1,2042.8,8.7185332]
[1773174435857,2.27875541,2043.0,2042.7,2.31280715]
[1773174436054,2.27875541,2043.0,2042.7,8.72480715]
[1773174436254,4.56383332,2043.1,2042.8,2.3065332]
[1773174436962,2.27875541,2043.0,2042.7,2.31280715]
[1773174438662,2.28507791,2043.1,2042.7,2.31280715]
[1773174439564,2.27875541,2043.3,2042.7,2.31280715]
[1773174439765,4.69509827,2043.2,2042.7,2.31280715]
[1773174440462,2.28507791,2043.2,2042.7,2.31280715]
[1773174441466,4.69509827,2043.2,2042.7,2.31280715]
[1773174447271,2.41002036,2043.1,2042.8,6.412]
[1773174448267,2.41002036,2043.1,2042.8,8.78309236]
[1773174448468,2.28507791,2043.0,2042.9,2.37109236]
[1773174448670,2.6594948,2043.4,2042.9,2.37109236]
[1773174451276,2.4148148,2043.4,2042.9,2.37109236]
[1773174459177,2.4148148,2043.4,2042.9,8.78309236]
[1773174459876,2.4148148,2043.4,2043.0,2.37109236]
[1773174460881,2.4148148,2043.4,2042.9,8.78309236]
[1773174461580,2.4148148,2043.4,2043.0,2.37109236]
[1773174482888,2.24933928,2043.6,2043.1,2.23613225]
[1773174484091,2.25293829,2043.6,2043.1,2.23613225]
[1773174485792,0.00359901,2043.6,2043.0,1.91588278]
[1773174486688,0.00359901,2043.6,2043.2,1.91588278]
[1773174486889,1.91948179,2043.6,2042.7,0.00627395]
[1773174487092,1.91948179,2043.6,2042.8,8.32788278]
[1773174487592,0.00359901,2043.6,2042.8,8.32788278]
[1773174495700,0.00359901,2043.6,2042.8,1.91588278]
[1773174495896,0.00359901,2043.6,2042.9,6.412]
[1773174510817,0.00359901,2043.6,2042.8,1.91588278]
[1773174511115,0.00359901,2043.6,2042.9,6.411]
[1773174511818,0.00359901,2043.6,2043.0,1.91588278]
[1773174513017,6.02182822,2044.1,2043.2,1.91588278]
[1773174513214,6.4152095,2044.0,2043.4,1.91588278]
[1773174513423,6.4152095,2043.9,2043.4,6.411]
[1773174513616,1.91588278,2044.1,2043.4,6.411]
[1773174513919,6.41357706,2044.0,2043.4,6.411]
[1773174514121,0.00384406,2044.0,2043.4,6.411]
[1773174523222,0.00384406,2044.0,2043.4,8.32688278]
[1773174531435,0.24458,2044.2,2043.6,1.91588278]
[1773174531634,0.24458,2044.2,2043.4,8.32688278]
[1773174532130,6.26635822,2044.6,2043.6,1.91588278]
[1773174532339,0.24453,2044.6,2043.8,1.91588278]
[1773174532627,0.24825269,2044.6,2043.8,8.32588278]
[1773174533229,0.24825269,2044.6,2043.8,6.41]
[1773174533433,0.24825269,2044.6,2044.0,1.91588278]
[1773174533626,0.00372269,2044.6,2044.0,1.91588278]
[1773174534331,0.00372269,2044.6,2044.2,1.91588278]
[1773174534531,1.91588278,2045.0,2044.2,8.33223327]
[1773174534731,0.24447,2045.1,2044.2,8.33223327]
[1773174534931,0.24447,2045.1,2044.4,1.91588278]
[1773174535531,0.24956256,2045.1,2044.4,1.91588278]
[1773174541238,0.00509256,2045.1,2044.4,1.91588278]
[1773174542132,0.24442,2045.5,2044.6,1.91588278]
[1773174542437,9.21459738,2045.9,2045.0,1.91588278]
[1773174542733,0.8897146,2045.9,2045.2,1.91588278]
[1773174542929,0.8897146,2045.9,2045.0,8.32488278]
[1773174543236,0.00438512,2045.9,2045.0,8.32488278]
[1773174543433,1.9202679,2045.9,2045.0,1.91588278]
[1773174543634,0.00438512,2045.9,2044.9,6.408]
[1773174544137,0.24439,2045.8,2044.9,6.408]
[1773174544938,0.24439,2045.8,2044.6,8.31985573]
[1773174545133,0.24439,2045.8,2044.6,6.408]
[1773174545736,0.24439,2045.8,2044.5,1.91185573]
[1773174545938,0.24439,2045.8,2044.6,6.408]
[1773174556644,0.24443,2045.5,2044.5,1.91185573]
[1773174556849,0.24443,2045.5,2044.2,1.91820622]
[1773174556850,0.24447,2045.2,2044.4,6.406]
[1773174557949,0.24449,2044.9,2044.2,0.00635049]
[1773174558149,0.24445,2045.3,2044.2,1.91820622]
[1773174561144,1.91185573,2045.6,2044.2,1.91820622]
[1773174561145,4.10594544,2045.8,2044.2,1.91820622]
[1773174561350,0.00438512,2045.9,2044.8,1.91185573]
[1773174561545,0.00438512,2045.9,2044.9,6.406]
[1773174564454,0.00438512,2045.9,2044.9,8.31785573]
[1773174564856,0.00438512,2045.9,2044.9,1.91185573]
[1773174565057,0.00438512,2045.9,2045.0,6.406]
[1773174569161,0.24439,2045.8,2044.6,0.24453]
[1773174569460,0.24439,2045.8,2044.8,6.406]
[1773174570762,0.24439,2045.8,2044.3,10.14338497]
[1773174570964,0.24439,2045.8,2044.4,6.405]
[1773174571264,6.31991282,2045.7,2044.4,6.405]
[1773174571465,0.24439,2045.8,2044.4,6.405]
[1773174571661,6.31991282,2045.7,2044.4,6.405]
[1773174571963,0.24439,2045.8,2044.4,6.405]
[1773174572163,6.32024695,2045.7,2044.4,6.405]
[1773174572363,0.24439,2045.8,2044.4,6.405]
[1773174572565,6.32239533,2045.7,2044.4,6.405]
[1773174572764,0.24439,2045.8,2044.4,6.405]
[1773174572963,6.32239533,2045.7,2044.4,6.405]
[1773174573166,0.24439,2045.8,2044.4,6.405]
[1773174573466,6.32226027,2045.7,2044.4,6.405]
[1773174573667,6.32245311,2045.6,2044.2,1.91820622]
[1773174573867,1.91185573,2045.7,2044.3,6.405]
[1773174574066,0.24442,2045.5,2044.2,1.91820622]
[1773174574467,0.24442,2045.5,2044.3,6.405]
[1773174575365,0.24442,2045.5,2044.2,1.91820622]
[1773174575669,0.24442,2045.5,2044.4,6.405]
[1773174576273,0.24442,2045.5,2044.5,6.405]
[1773174585782,0.24442,2045.5,2044.5,6.406]
[1773174586682,0.24442,2045.5,2044.2,1.91820622]
[1773174586882,0.24442,2045.5,2044.3,6.406]
[1773174588581,0.24442,2045.5,2044.2,1.91820622]
[1773174588783,0.24442,2045.5,2044.3,6.406]
[1773174592983,6.65042,2045.5,2044.2,1.91820622]
[1773174593187,0.24445,2045.3,2044.3,6.406]
[1773174593987,0.24445,2045.3,2044.2,0.00635049]
[1773174597292,0.24445,2045.3,2044.2,1.91820622]
[1773174597890,0.24445,2045.3,2044.5,1.91185573]
[1773174598093,0.24445,2045.3,2044.6,6.406]
[1773174598392,0.24445,2045.3,2044.5,6.406]
[1773174600699,0.24445,2045.3,2044.2,1.91820622]
[1773174600894,0.24445,2045.3,2044.3,6.406]
[1773174601494,0.24445,2045.3,2044.4,6.406]
[1773174602493,0.24445,2045.3,2044.2,1.91820622]
[1773174602690,0.24445,2045.3,2044.3,6.406]
[1773174603086,6.406,2045.5,2044.3,6.406]
[1773174603289,0.2444,2045.7,2044.7,1.91185573]
[1773174603486,0.2444,2045.7,2044.8,6.406]
[1773174603688,6.41038512,2045.9,2045.1,1.91157439]
[1773174604288,8.56633951,2045.9,2044.9,1.91157439]
[1773174604491,1.91157439,2045.7,2044.8,6.406]
[1773174604898,0.24441,2045.6,2044.8,6.406]
[1773174605094,1.91157439,2045.5,2044.4,1.91157439]
[1773174605295,0.24443,2045.4,2044.5,8.31757439]
[1773174605495,1.91157439,2045.1,2044.4,6.406]
[1773174605689,0.24446,2045.2,2044.4,6.406]
[1773174607693,0.24446,2045.2,2044.2,1.91792488]
[1773174607898,0.24449,2044.9,2044.2,0.00635049]
[1773174608296,0.24449,2044.9,2044.2,1.91792488]
[1773174608495,0.24449,2044.9,2044.4,1.91157439]
[1773174609497,0.24449,2044.9,2044.2,1.91792488]
[1773174609997,1.91157439,2045.3,2044.2,1.91792488]
[1773174610193,6.33072078,2045.2,2044.4,1.91157439]
[1773174610393,6.65044,2045.4,2044.6,1.91157439]
[1773174610694,6.65044,2045.4,2044.4,1.91157439]
[1773174610894,1.91157439,2045.1,2044.2,1.91792488]
[1773174611094,1.91157439,2045.1,2044.2,8.32392488]
[1773174611296,1.91157439,2044.9,2044.2,0.00635049]
[1773174611490,0.24451,2044.8,2044.2,0.00635049]
[1773174612395,6.26197983,2045.3,2044.2,1.91792488]
[1773174612596,6.32933718,2045.2,2044.2,1.91792488]
[1773174612795,6.32933718,2045.1,2044.2,1.91792488]
[1773174613000,1.91157439,2045.1,2044.2,1.91792488]
[1773174613600,4.35040544,2045.3,2044.2,0.00635049]
[1773174613801,0.24447,2045.1,2044.2,0.00635049]
[1773174622312,6.406,2045.4,2044.2,0.00635049]
[1773174623411,0.24442,2045.6,2044.3,0.24457]
[1773174624012,0.24442,2045.6,2044.4,6.407]
[1773174627117,6.407,2045.8,2044.3,6.407]
[1773174627118,0.24446,2045.2,2044.3,6.407]
[1773174627320,0.24446,2045.2,2044.2,0.00635049]
[1773174627616,0.24446,2045.2,2044.3,6.407]
[1773174631023,0.24446,2045.2,2044.3,6.406]
[1773174631223,0.24446,2045.2,2044.2,0.00635049]
[1773174631421,0.24446,2045.2,2044.2,6.41235049]
[1773174635628,0.24446,2045.2,2044.4,1.91284112]
[1773174635926,0.24446,2045.2,2044.6,1.91284112]
[1773174642730,1.91284112,2045.6,2044.6,1.91284112]
[1773174642929,1.91284112,2045.4,2044.4,8.31884112]
[1773174643630,1.91284112,2045.4,2044.4,1.91284112]
[1773174644626,0.24442,2045.5,2044.6,1.91284112]
[1773174644830,6.33104565,2045.4,2044.6,1.91284112]
[1773174645033,0.24442,2045.5,2044.6,1.91284112]
[1773174648132,6.33634624,2045.4,2044.6,1.91284112]
[1773174648333,0.24442,2045.5,2044.6,1.91284112]
[1773174648528,6.33634624,2045.4,2044.6,1.91284112]
[1773174648733,0.24442,2045.5,2044.6,1.91284112]
[1773174649033,6.33634624,2045.4,2044.6,1.91284112]
[1773174649229,0.24442,2045.5,2044.6,1.91284112]
[1773174649431,6.33823252,2045.4,2044.6,1.91284112]
[1773174649632,0.24442,2045.5,2044.6,1.91284112]
[1773174649935,6.33823252,2045.4,2044.6,1.91284112]
[1773174650136,0.24442,2045.5,2044.6,1.91284112]
[1773174650433,6.33836771,2045.4,2044.6,1.91284112]
[1773174650732,0.24442,2045.5,2044.6,1.91284112]
[1773174650933,6.3383806,2045.4,2044.6,1.91284112]
[1773174651126,0.24442,2045.5,2044.6,1.91284112]
[1773174651323,6.33856697,2045.4,2044.6,1.91284112]
[1773174651523,0.24442,2045.5,2044.6,1.91284112]
[1773174651732,6.33856697,2045.4,2044.6,1.91284112]
[1773174651933,0.24442,2045.5,2044.6,1.91284112]
[1773174652129,6.33856697,2045.4,2044.6,1.91284112]
[1773174652333,0.24442,2045.5,2044.6,1.91284112]
[1773174652534,6.33872596,2045.4,2044.6,1.91284112]
[1773174652733,0.24442,2045.5,2044.6,1.91284112]
[1773174652936,6.33872596,2045.4,2044.6,1.91284112]
[1773174653134,0.24442,2045.5,2044.6,1.91284112]
[1773174653328,6.33878168,2045.4,2044.6,1.91284112]
[1773174653532,0.24442,2045.5,2044.6,1.91284112]
[1773174653733,6.33896216,2045.4,2044.6,1.91284112]
[1773174653932,0.24442,2045.5,2044.6,1.91284112]
[1773174654129,6.33894927,2045.4,2044.6,1.91284112]
[1773174654330,0.24442,2045.5,2044.6,1.91284112]
[1773174654528,6.33941753,2045.4,2044.6,1.91284112]
[1773174654736,0.24442,2045.5,2044.6,1.91284112]
[1773174654936,6.33940464,2045.4,2044.6,1.91284112]
[1773174655130,0.24442,2045.5,2044.6,1.91284112]
[1773174655329,6.33999106,2045.4,2044.6,1.91284112]
[1773174655529,0.24442,2045.5,2044.6,1.91284112]
[1773174655728,6.33999106,2045.4,2044.6,1.91284112]
[1773174655938,0.24442,2045.5,2044.6,1.91284112]
[1773174656137,6.33999106,2045.4,2044.6,1.91284112]
[1773174656340,0.24442,2045.5,2044.6,1.91284112]
[1773174656537,6.34067173,2045.4,2044.6,1.91284112]
[1773174656738,0.24442,2045.5,2044.6,1.91284112]
[1773174656938,6.34067173,2045.4,2044.6,1.91284112]
[1773174657138,0.24442,2045.5,2044.6,1.91284112]
[1773174657338,6.3411187,2045.4,2044.6,1.91284112]
[1773174657538,0.24442,2045.5,2044.6,1.91284112]
[1773174657740,6.3411187,2045.4,2044.6,1.91284112]
[1773174658038,0.24442,2045.5,2044.6,1.91284112]
[1773174658238,6.34115153,2045.4,2044.6,1.91284112]
[1773174658539,0.24442,2045.5,2044.6,1.91284112]
[1773174658732,6.34115153,2045.4,2044.6,1.91284112]
[1773174658930,0.24442,2045.5,2044.6,1.91284112]
[1773174659138,6.34118231,2045.4,2044.4,1.91284112]
[1773174659341,0.24442,2045.5,2044.4,1.91284112]
[1773174659639,6.34123612,2045.4,2044.4,1.91284112]
[1773174659839,0.24442,2045.5,2044.4,1.91284112]
[1773174660039,6.34127481,2045.4,2044.4,1.91284112]
[1773174660334,0.24442,2045.5,2044.4,1.91284112]
[1773174660540,6.3412765,2045.4,2044.4,1.91284112]
[1773174660741,0.24442,2045.5,2044.4,1.91284112]
[1773174660935,6.3412765,2045.4,2044.4,1.91284112]
[1773174661136,0.24442,2045.5,2044.4,1.91284112]
[1773174661438,6.34155606,2045.4,2044.4,1.91284112]
[1773174661737,0.24442,2045.5,2044.4,1.91284112]
[1773174661937,6.34155606,2045.4,2044.4,1.91284112]
[1773174662137,0.24442,2045.5,2044.4,1.91284112]
[1773174662341,6.34174684,2045.4,2044.4,1.91284112]
[1773174662539,0.24442,2045.5,2044.6,1.91284112]
[1773174662739,6.34170815,2045.4,2044.6,1.91284112]
[1773174663038,0.24442,2045.5,2044.6,1.91284112]
[1773174663240,6.34192843,2045.4,2044.6,1.91284112]
[1773174663437,0.24442,2045.5,2044.6,1.91284112]
[1773174663640,6.34172797,2045.4,2044.6,1.91284112]
[1773174663838,0.24442,2045.5,2044.6,1.91284112]
[1773174664039,6.34168928,2045.4,2044.6,1.91284112]
[1773174664240,0.24442,2045.5,2044.6,1.91284112]
[1773174664444,6.34180924,2045.4,2044.6,1.91284112]
[1773174664645,0.24442,2045.5,2044.6,1.91284112]
[1773174664843,6.34180924,2045.4,2044.6,1.91284112]
[1773174665044,0.24442,2045.5,2044.6,1.91284112]
[1773174665345,6.34204238,2045.4,2044.6,1.91284112]
[1773174665540,0.24442,2045.5,2044.3,6.406]
[1773174665844,6.34230035,2045.4,2044.3,6.406]
[1773174666045,0.24442,2045.5,2044.3,6.406]
[1773174666247,6.34214427,2045.4,2044.3,6.406]
[1773174666447,0.24442,2045.5,2044.3,6.406]
[1773174666647,6.34217006,2045.4,2044.3,6.406]
[1773174666946,0.24442,2045.5,2044.3,6.406]
[1773174667146,6.34217006,2045.4,2044.3,6.406]
[1773174667446,0.24442,2045.5,2044.3,6.406]
[1773174667641,6.34222323,2045.4,2044.3,6.406]
[1773174667843,0.24442,2045.5,2044.3,6.406]
[1773174668146,6.34222323,2045.4,2044.3,6.406]
[1773174668347,0.24442,2045.5,2044.3,6.406]
[1773174668547,6.34227784,2045.4,2044.3,6.406]
[1773174668744,0.24442,2045.5,2044.3,6.406]
[1773174669045,6.34227784,2045.4,2044.3,6.406]
[1773174669245,0.24442,2045.5,2044.3,6.406]
[1773174669448,6.34236542,2045.4,2044.3,6.406]
[1773174669649,0.24442,2045.5,2044.3,6.406]
[1773174669852,6.34240412,2045.4,2044.3,6.406]
[1773174670048,0.24442,2045.5,2044.3,6.406]
[1773174670248,6.34246983,2045.4,2044.3,6.406]
[1773174670547,0.24442,2045.5,2044.3,6.406]
[1773174670748,6.34246983,2045.4,2044.3,6.406]
[1773174670948,0.24442,2045.5,2044.3,6.406]
[1773174671150,6.34246983,2045.4,2044.3,6.406]
[1773174671350,0.24442,2045.5,2044.3,6.406]
[1773174671551,6.34260042,2045.4,2044.3,6.406]
[1773174671745,0.24442,2045.5,2044.3,6.406]
[1773174671943,6.34260042,2045.4,2044.3,6.406]
[1773174672153,0.24442,2045.5,2044.3,6.406]
[1773174672352,6.34276694,2045.4,2044.3,6.406]
[1773174672552,0.24442,2045.5,2044.3,6.406]
[1773174672753,6.34276694,2045.4,2044.3,6.65056]
[1773174673052,0.24442,2045.5,2044.3,6.65056]
[1773174673251,6.34321752,2045.4,2044.3,6.65056]
[1773174673451,0.24442,2045.5,2044.3,6.65056]
[1773174673652,6.34321752,2045.4,2044.3,6.65056]
[1773174673953,0.24442,2045.5,2044.3,6.65056]
[1773174674152,6.34319172,2045.4,2044.3,6.65056]
[1773174674353,0.24442,2045.5,2044.3,6.65056]
[1773174674553,6.34374153,2045.4,2044.3,16.79394497]
[1773174674754,0.24442,2045.5,2044.3,16.79394497]
[1773174675556,0.24442,2045.5,2044.5,1.91269633]
[1773174677457,0.24442,2045.5,2044.3,16.79394497]
[1773174678456,0.24442,2045.5,2044.5,1.91269633]
[1773174683962,0.24442,2045.5,2044.3,16.79394497]
[1773174684859,0.24442,2045.5,2044.5,1.91269633]
[1773174685469,6.407,2045.8,2044.5,1.91269633]
[1773174685765,6.33772899,2045.7,2044.8,1.91269633]
[1773174685967,0.24876512,2045.9,2044.9,6.406]
[1773174690371,0.24876512,2045.9,2044.6,10.38790497]
[1773174690572,0.24876512,2045.9,2044.7,6.405]
[1773174690774,0.24876512,2045.9,2044.8,6.405]
[1773174691468,0.24876512,2045.9,2044.5,1.91269633]
[1773174691673,0.24442,2045.5,2044.2,0.00635049]
[1773174691874,6.31839984,2045.4,2044.2,8.32404682]
[1773174692568,6.405,2045.5,2044.3,0.24457]
[1773174693073,6.31890646,2045.4,2044.3,0.24457]
[1773174693275,6.405,2045.5,2044.3,0.24457]
[1773174693576,6.31881598,2045.4,2044.3,0.24457]
[1773174693773,6.405,2045.5,2044.4,6.405]
[1773174693974,6.31881598,2045.4,2044.4,6.405]
[1773174694175,6.405,2045.5,2044.4,6.405]
[1773174694373,6.3184432,2045.4,2044.4,6.405]
[1773174694572,6.405,2045.5,2044.4,6.405]
[1773174694974,4.10594544,2045.7,2044.5,2.15723633]
[1773174695178,0.2444,2045.8,2044.8,1.91269633]
[1773174695870,0.2444,2045.8,2044.5,2.15723633]
[1773174696175,0.2444,2045.8,2044.6,6.406]
[1773174696972,0.2444,2045.8,2044.7,1.91269633]
[1773174700881,0.2444,2045.8,2044.7,8.31769633]
[1773174701683,0.2444,2045.8,2044.7,1.91269633]
[1773174702983,6.31946681,2045.7,2044.7,1.91269633]
[1773174703185,0.2444,2045.8,2044.7,1.91269633]
[1773174703384,6.31978392,2045.7,2044.7,1.91269633]
[1773174703581,0.2444,2045.8,2044.7,1.91269633]
[1773174703777,6.40938512,2045.9,2044.3,10.14338497]
[1773174703778,0.24441,2045.6,2044.3,10.14338497]
[1773174703981,6.405,2045.5,2044.4,6.405]
[1773174704585,6.40938512,2045.9,2044.8,1.91269633]
[1773174704783,6.33048234,2045.8,2044.8,1.91269633]
[1773174705083,6.33048234,2045.7,2044.5,2.15723633]
[1773174705286,6.40938512,2045.9,2044.5,2.15723633]
[1773174705479,6.33040699,2045.8,2044.5,2.15723633]
[1773174705784,6.33040699,2045.7,2044.5,2.15723633]
[1773174705985,6.40938512,2045.9,2044.5,2.15723633]
[1773174706188,0.2444,2045.7,2044.2,10.14973546]
[1773174706388,0.24442,2045.5,2044.3,6.405]
[1773174706686,6.405,2045.4,2044.3,6.405]
[1773174710789,6.405,2045.4,2044.2,0.00635049]
[1773174710989,6.405,2045.4,2044.3,6.405]
[1773174711990,6.405,2045.4,2044.4,6.405]
[1773174713497,0.24445,2045.3,2044.4,6.405]
[1773174714395,0.24445,2045.3,2044.2,0.00635049]
[1773174714594,0.24445,2045.3,2044.3,6.406]
[1773174724498,0.24445,2045.3,2044.2,0.00635049]
[1773174725605,2.15747821,2045.3,2044.3,1.91302821]
[1773174726507,9.83720454,2046.0,2044.3,1.91302821]
[1773174726508,0.2443,2046.6,2045.2,1.91302821]
[1773174726703,6.33066491,2046.5,2045.8,1.91302821]
[1773174726905,8.56325821,2047.1,2046.0,1.91302821]
[1773174727307,6.65023,2047.1,2046.2,1.91302821]
[1773174727507,14.52487956,2047.0,2046.6,1.91302821]
[1773174727702,14.52487956,2047.0,2046.4,1.91302821]
[1773174728200,1.91302821,2047.5,2046.4,1.91302821]
[1773174728201,1.91302821,2047.5,2046.4,7.99948437]
[1773174728408,1.91302821,2047.6,2046.4,1.91302821]
[1773174728608,1.91302821,2047.4,2046.4,1.91302821]
[1773174728905,8.31902821,2047.4,2046.4,1.91302821]
[1773174729108,0.24421,2047.3,2046.4,1.91302821]
[1773174729409,1.91302821,2047.2,2046.2,1.91833387]
[1773174731407,1.91302821,2047.2,2046.2,0.00530566]
[1773174731602,1.91302821,2047.0,2046.2,0.00530566]
[1773174731904,1.91302821,2046.8,2046.2,0.00530566]
[1773174732104,6.404,2046.9,2046.2,0.00530566]
[1773174733606,1.91302821,2046.8,2046.2,0.00530566]
[1773174733808,6.404,2046.9,2046.2,0.00530566]
[1773174734805,0.24421,2047.3,2046.2,0.00530566]
[1773174735004,1.91302821,2047.1,2046.2,0.00530566]
[1773174735408,1.91302821,2046.9,2046.2,0.00530566]
[1773174735608,2.15728821,2046.9,2046.2,0.00530566]
[1773174736010,0.24426,2046.9,2046.2,0.00530566]
[1773174736514,1.91302821,2047.1,2046.2,0.00530566]
[1773174736515,1.91302821,2047.1,2046.2,1.91833387]
[1773174739909,1.91302821,2046.7,2046.2,0.00530566]
[1773174740317,1.91302821,2046.9,2046.2,0.00530566]
[1773174742716,1.91302821,2046.7,2046.2,0.00530566]
[1773174743216,6.402,2046.6,2046.2,0.00530566]
[1773174743415,6.402,2046.6,2045.7,1.91302821]
[1773174744609,1.91302821,2046.5,2045.7,0.00623805]
[1773174744815,1.91302821,2046.5,2045.1,6.08645616]
[1773174744816,1.91302821,2045.9,2045.1,6.08645616]
[1773174745017,8.31502821,2045.9,2044.9,1.91302821]
[1773174745812,6.40764928,2045.9,2045.3,1.91302821]
[1773174746619,6.40764928,2045.9,2045.1,1.91302821]
[1773174748522,6.40764928,2045.9,2045.5,1.91302821]
[1773174748719,0.00564928,2045.9,2045.5,1.91302821]
[1773174749521,0.00564928,2045.9,2045.3,5.93611156]
[1773174750219,0.00564928,2045.9,2045.4,4.02308335]
[1773174750417,0.00564928,2045.9,2045.3,5.93611156]
[1773174750819,0.24431,2046.5,2045.5,1.91302821]
[1773174751120,1.91302821,2046.3,2045.4,4.02308335]
[1773174751825,1.91792294,2046.3,2045.4,4.02308335]
[1773174752025,0.00489473,2046.3,2045.4,4.02308335]
[1773174754228,0.00489473,2046.3,2045.5,4.02308335]
[1773174754728,0.00489473,2046.3,2045.5,4.03791203]
[1773174755826,0.00489473,2046.3,2045.5,5.95094024]
[1773174756228,6.403,2046.2,2045.6,4.03791203]
[1773174759135,6.403,2046.9,2046.1,5.95094024]
[1773174759535,6.403,2046.9,2046.1,4.03791203]
[1773174760036,6.40683736,2046.9,2046.2,4.03791203]
[1773174760832,6.40683736,2046.9,2046.1,4.03791203]
[1773174760833,0.24427,2046.8,2046.1,4.03791203]
[1773174761029,0.24431,2046.5,2045.4,13.69452637]
[1773174761334,0.24433,2046.3,2045.4,6.08645616]
[1773174764536,0.24438,2045.9,2045.1,6.08645616]
[1773174764744,6.403,2045.8,2045.1,6.08645616]
[1773174765240,6.403,2045.8,2044.9,7.61260718]
[1773174765241,6.403,2045.8,2045.0,6.08645616]
[1773174766739,6.403,2045.8,2044.9,0.00453697]
[1773174766740,6.403,2045.8,2044.9,6.09099313]
[1773174766940,0.2444,2045.7,2044.9,0.00453697]
[1773174769846,0.2444,2045.7,2044.5,6.08645616]
[1773174770046,0.2444,2045.7,2044.4,6.08645616]
[1773174770945,0.2444,2045.7,2044.4,6.09276296]
[1773174771239,0.2444,2045.7,2044.4,0.0063068]
[1773174771947,6.404,2045.6,2044.4,0.0063068]
[1773174772445,0.24442,2045.5,2044.4,0.0063068]
[1773174772942,0.24447,2045.1,2044.4,0.0063068]
[1773174773142,6.404,2045.0,2044.0,6.08645616]
[1773174774345,6.404,2045.0,2044.0,6.09007071]
[1773174775348,0.24844261,2045.1,2044.0,6.09007071]
[1773174775547,0.00397261,2045.1,2044.0,6.09007071]
[1773174775943,6.405,2045.0,2044.0,6.09007071]
[1773174776139,6.405,2045.0,2044.0,0.00361455]
[1773174776449,6.405,2044.9,2044.1,6.33104616]
[1773174776845,6.405,2044.9,2044.0,0.00361455]
[1773174778152,6.405,2044.9,2044.0,0.24821455]
[1773174778354,6.405,2044.9,2044.0,6.33467071]
[1773174778644,0.00397261,2045.1,2044.0,6.33467071]
[1773174778850,6.405,2044.9,2044.1,6.08645616]
[1773174784953,6.405,2044.9,2044.2,0.24458]
[1773174785257,6.406,2045.2,2044.4,2.86449959]
[1773174785458,6.406,2045.1,2044.4,2.86449959]
[1773174786260,6.41146886,2045.1,2044.4,2.86449959]
[1773174786760,6.406,2045.1,2044.4,8.95095575]
[1773174787557,0.2444,2045.7,2044.4,6.08645616]
[1773174787861,6.406,2045.6,2044.4,6.08645616]
[1773174788160,6.406,2045.6,2044.5,6.08645616]
[1773174788360,6.406,2045.6,2044.4,6.08645616]
[1773174789251,6.406,2045.6,2044.5,6.08645616]
[1773174790157,6.406,2045.6,2044.6,6.08645616]
[1773174794266,6.406,2045.6,2044.7,6.08645616]
[1773174796666,6.406,2045.5,2044.8,6.08645616]
[1773174797964,0.00422754,2045.7,2044.8,6.08645616]
[1773174798169,6.406,2045.6,2045.0,6.08645616]
[1773174798862,0.00422754,2045.7,2045.0,6.08645616]
[1773174799062,6.41022754,2045.7,2045.0,6.08645616]
[1773174807970,6.41022754,2045.7,2044.9,6.08645616]
[1773174808168,0.24441,2045.6,2044.9,6.08645616]
[1773174808369,6.405,2045.5,2044.9,6.08645616]
[1773174809469,0.00422754,2045.7,2045.0,6.08645616]
[1773174809675,6.405,2045.6,2045.0,6.08645616]
[1773174811272,0.00422754,2045.7,2045.0,6.08645616]
[1773174811473,6.405,2045.6,2045.0,6.08645616]
[1773174813277,0.00422754,2045.7,2045.1,6.08645616]
[1773174813475,6.405,2045.6,2045.1,6.08645616]
[1773174815281,6.405,2045.5,2045.1,6.08645616]
[1773174815479,4.80218319,2045.5,2045.1,6.08645616]
[1773174815675,4.50837969,2045.5,2045.1,6.08645616]
[1773174818080,4.75280969,2045.5,2044.8,7.60807021]
[1773174818380,4.75280969,2045.5,2044.7,7.60807021]
[1773174818580,2.50853816,2045.4,2044.8,2.46046276]
[1773174818976,2.50853816,2045.4,2044.6,7.60807021]
[1773174819282,2.50853816,2045.4,2044.6,2.46046276]
[1773174819482,2.50853816,2045.3,2044.7,10.06853297]
[1773174819781,2.50853816,2045.3,2044.7,2.46046276]
[1773174820376,2.50853816,2045.3,2044.6,6.57037903]
[1773174820581,2.50853816,2045.3,2044.3,2.46046276]
[1773174820881,2.50853816,2045.3,2044.0,10.14699952]
[1773174820882,2.50853816,2045.1,2044.1,2.46046276]
[1773174821180,2.50853816,2044.9,2044.1,2.46046276]
[1773174822679,2.50853816,2044.9,2044.0,0.00361455]
[1773174822986,2.50853816,2044.7,2044.0,0.00361455]
[1773174823185,2.50853816,2044.5,2044.0,0.00361455]
[1773174823380,2.50853816,2044.3,2043.8,2.46046276]
[1773174823581,8.91453816,2044.2,2043.8,2.46046276]
[1773174823983,6.406,2044.2,2043.8,2.46046276]
[1773174824386,6.41160428,2044.2,2043.8,0.56710445]
[1773174825285,8.92014244,2044.2,2043.8,0.56710445]
[1773174825688,2.50853816,2044.1,2043.8,0.56710445]
[1773174826185,8.92014244,2044.2,2043.8,0.56710445]
[1773174827080,2.62880188,2044.1,2043.8,0.56710445]
[1773174827799,2.62880188,2044.1,2043.5,2.62662102]
[1773174828698,2.62880188,2044.1,2043.5,2.63175128]
[1773174835195,0.00560428,2044.2,2043.5,2.63175128]
[1773174835396,6.408,2044.1,2043.5,2.63175128]
[1773174835798,8.95508999,2044.1,2043.5,2.63175128]
[1773174839302,2.54708999,2044.0,2043.5,2.63175128]